bitfinex/quotes_ETHUSD_20241203
["timestamp","ask_amount","ask_price","bid_price","bid_amount"]
[1733261301941,0.25751433,3628.0,3627.9,6.78494901]
[1733261302085,0.25751433,3628.0,3627.9,4.51591]
[1733261302448,0.84506049,3628.0,3627.9,6.218616]
[1733261302590,0.51519639,3628.0,3627.9,4.51591]
[1733261303095,0.25770166,3628.0,3627.9,4.51591]
[1733261303295,0.25770166,3628.0,3627.9,7.35366993]
[1733261303526,0.72255515,3628.6,3627.9,7.35366993]
[1733261303778,0.70372312,3628.9,3627.9,7.35366993]
[1733261303779,1.66977523,3628.5,3628.3,2.75604]
[1733261303932,0.70372312,3628.9,3628.3,2.75604]
[1733261303933,1.25746404,3628.4,3628.3,2.75604]
[1733261304144,1.25746404,3628.4,3628.2,1.70212144]
[1733261304422,0.17235701,3628.8,3628.2,1.70212144]
[1733261304423,1.25746404,3628.3,3628.2,0.0304]
[1733261305227,1.39536148,3628.3,3628.2,0.0304]
[1733261305402,1.25746404,3628.3,3628.2,0.0304]
[1733261305603,1.5677375,3628.3,3628.2,0.0304]
[1733261305919,1.98006237,3628.3,3628.2,0.0304]
[1733261306230,1.98006141,3628.3,3628.2,0.0304]
[1733261306418,1.84216135,3628.3,3628.2,0.0304]
[1733261306727,2.58146908,3628.3,3628.2,0.0304]
[1733261306917,2.15242304,3628.3,3628.2,0.0304]
[1733261307094,2.85729498,3628.3,3628.2,0.0304]
[1733261307286,2.15281771,3628.3,3628.2,0.0304]
[1733261308011,2.8573092,3628.3,3628.2,0.0304]
[1733261308211,2.58238569,3628.3,3628.2,0.0304]
[1733261308413,2.15281771,3628.3,3628.2,0.0304]
[1733261308818,2.85734972,3628.3,3628.2,0.0304]
[1733261309017,2.58242575,3628.3,3628.2,0.0304]
[1733261309619,2.15284856,3628.3,3627.8,174.07870702]
[1733261309818,0.42957086,3628.0,3627.8,174.07870702]
[1733261310120,2.35904261,3627.9,3627.8,174.07870702]
[1733261311543,2.35904261,3627.9,3627.8,174.10590702]
[1733261311716,2.35904261,3627.9,3627.8,175.80802846]
[1733261311914,2.18664996,3627.9,3627.8,175.80802846]
[1733261312158,1.87634854,3627.9,3627.8,177.35162846]
[1733261312512,1.87634854,3627.9,3627.8,175.64950702]
[1733261312859,1.13408312,3627.9,3627.8,177.91900227]
[1733261313038,0.72167595,3627.9,3627.8,177.92253586]
[1733261313240,0.72167595,3627.9,3627.8,175.64950702]
[1733261313409,1.1341307,3627.9,3627.8,177.9223358]
[1733261313614,1.1341307,3627.9,3627.8,175.64950702]
[1733261313818,0.72171002,3627.9,3627.8,174.10590702]
[1733261314129,1.134164,3627.9,3627.8,176.37881993]
[1733261314329,1.134164,3627.9,3627.8,174.10590702]
[1733261314517,1.134164,3627.9,3627.8,176.37881993]
[1733261315325,1.54671154,3627.9,3627.8,179.13576524]
[1733261315527,0.72171002,3627.9,3627.8,176.96239702]
[1733261315741,0.72171002,3627.9,3627.8,176.86239702]
[1733261315916,0.25774631,3627.9,3627.8,174.20590702]
[1733261316115,0.25774631,3627.9,3627.8,174.10590702]
[1733261316321,0.72188218,3627.9,3627.8,174.10590702]
[1733261316836,0.25774631,3627.9,3627.8,174.20590702]
[1733261317210,0.72188474,3627.9,3627.8,174.10590702]
[1733261317411,1.13445614,3627.9,3627.8,174.20590702]
[1733261318165,1.13445614,3627.9,3627.8,174.10590702]
[1733261318519,1.13445614,3627.9,3627.8,176.94982378]
[1733261319370,1.87723086,3627.9,3627.8,176.94982378]
[1733261319574,1.54710764,3627.9,3627.8,176.94982378]
[1733261319767,1.13445614,3627.9,3627.8,174.10590702]
[1733261319980,0.92817343,3627.9,3627.8,174.10590702]
[1733261320185,0.51579138,3627.9,3627.8,174.10590702]
[1733261320368,0.92842449,3627.9,3627.8,174.10590702]
[1733261320557,1.13474104,3627.9,3627.8,174.10590702]
[1733261320767,0.46421224,3627.9,3627.8,174.10590702]
[1733261320954,1.13473878,3627.9,3627.8,174.10590702]
[1733261321264,0.87684372,3627.9,3627.8,174.10590702]
[1733261321467,0.46421161,3627.9,3627.8,174.10590702]
[1733261321682,0.87687147,3627.9,3627.8,174.10590702]
[1733261322504,1.46501823,3627.9,3627.8,176.95019913]
[1733261322792,1.63740877,3627.9,3627.8,174.10590702]
[1733261323204,1.37945035,3627.9,3627.8,174.10590702]
[1733261323563,1.20726301,3627.9,3627.8,176.950044]
[1733261323761,1.37965461,3627.9,3627.8,174.10590702]
[1733261324257,1.37981781,3627.9,3627.8,174.10590702]
[1733261324500,1.63781476,3627.9,3627.8,174.10590702]
[1733261324793,1.63781476,3627.9,3627.8,176.3811864]
[1733261325202,1.77572895,3627.9,3627.8,176.3811864]
[1733261325360,1.77572895,3627.9,3627.8,180.6567764]
[1733261325563,1.77572895,3627.9,3627.8,178.38149702]
[1733261325760,1.77572895,3627.9,3627.8,178.48149702]
[1733261325984,1.20742574,3627.9,3627.8,178.48149702]
[1733261326163,1.87813188,3627.9,3627.8,178.48149702]
[1733261326777,1.87813188,3627.9,3627.8,178.68149702]
[1733261326978,0.72235841,3627.9,3627.8,178.68149702]
[1733261327293,0.27519675,3628.8,3628.4,0.1]
[1733261327493,2.36131783,3628.7,3628.6,2.27453113]
[1733261327811,2.40685146,3628.7,3628.6,2.27453113]
[1733261327965,2.40685146,3628.7,3628.6,3.86963113]
[1733261328160,2.36131651,3628.7,3628.6,3.86963113]
[1733261328366,2.40696032,3628.7,3628.6,6.62551113]
[1733261328710,2.40696032,3628.7,3628.6,4.35098]
[1733261328877,2.06225114,3628.7,3628.6,7.29414561]
[1733261329075,1.87872393,3628.7,3628.6,4.45098]
[1733261329479,1.05291075,3628.7,3628.6,4.45098]
[1733261329665,0.46451951,3628.7,3628.6,4.45098]
[1733261329867,0.28362846,3629.3,3629.2,2.75542]
[1733261330193,0.28362846,3629.3,3629.2,7.1557118]
[1733261330194,1.74898862,3629.3,3629.2,7.1557118]
[1733261330504,1.79482943,3629.3,3629.2,7.1557118]
[1733261330800,1.33621114,3629.3,3629.2,7.35578062]
[1733261331110,1.74837899,3629.3,3629.2,7.35581027]
[1733261331267,1.33597667,3629.3,3629.2,4.51572]
[1733261331601,1.33597667,3629.3,3629.2,7.35581027]
[1733261331789,1.00575464,3629.3,3629.2,7.35581027]
[1733261331960,1.33548087,3629.3,3629.2,7.35581027]
[1733261332160,1.33548087,3629.3,3629.2,4.51572]
[1733261332161,1.00575464,3629.3,3629.2,4.51572]
[1733261332365,1.00575464,3629.3,3629.2,4.31572]
[1733261332765,1.33533453,3629.3,3629.2,6.58675633]
[1733261333205,0.74776868,3629.3,3629.2,6.58614825]
[1733261333368,0.74776868,3629.3,3629.2,4.31572]
[1733261333701,0.74776868,3629.3,3629.2,6.58597733]
[1733261334658,0.48947417,3629.3,3629.2,6.58597733]
[1733261334848,0.74678114,3629.3,3629.2,6.58597733]
[1733261335367,0.41154164,3629.8,3629.6,0.2]
[1733261335582,0.17230554,3630.2,3629.9,2.85485]
[1733261335878,1.04934752,3630.1,3629.9,1.8284892]
[1733261336027,0.46294728,3630.0,3629.9,0.1272]
[1733261336232,0.20575494,3630.0,3629.9,0.1272]
[1733261336525,1.45410775,3630.6,3629.9,0.1272]
[1733261336764,1.45977453,3630.5,3630.0,1.70015063]
[1733261336942,1.45977453,3630.4,3629.9,1.82735063]
[1733261337138,1.45977453,3630.3,3629.9,1.82735063]
[1733261337469,1.45977453,3630.2,3629.9,0.1272]
[1733261337675,0.46260235,3630.1,3629.9,0.1272]
[1733261337989,0.20560219,3630.0,3629.9,0.1272]
[1733261338135,0.46249842,3630.0,3629.9,0.0272]
[1733261339383,1.50495357,3630.0,3629.9,0.0272]
[1733261339534,2.09035519,3630.0,3629.9,0.0272]
[1733261339728,2.50138915,3630.0,3629.9,0.0272]
[1733261340943,2.50112615,3630.0,3629.9,0.0272]
[1733261341394,3.04982966,3630.0,3629.9,0.0272]
[1733261341931,1.0476731,3630.0,3629.9,2.88209]
[1733261342378,1.0476731,3630.0,3629.9,0.1272]
[1733261343065,1.09477326,3630.0,3629.9,0.1272]
[1733261343892,1.09441763,3630.0,3629.9,0.1272]
[1733261345151,0.83772217,3630.0,3629.9,2.88209]
[1733261345382,0.58102671,3630.0,3629.9,2.88209]
[1733261345764,0.83770084,3630.0,3629.9,2.88209]
[1733261345978,0.58102671,3630.0,3629.9,2.88209]
[1733261346333,0.25245652,3630.0,3629.9,2.88209]
[1733261348385,0.50910822,3630.0,3629.9,2.88209]
[1733261350476,0.30375186,3630.0,3629.9,0.1272]
[1733261350681,0.50915529,3630.0,3629.9,2.88209]
[1733261353376,0.7661343,3630.0,3629.9,2.88209]
[1733261353609,0.50915529,3630.0,3629.9,2.88209]
[1733261353930,0.76665216,3630.0,3629.9,2.88209]
[1733261354136,0.50966822,3630.0,3629.9,2.88209]
[1733261354313,0.50980989,3630.0,3629.9,2.88209]
[1733261354522,0.76693381,3630.0,3629.9,2.88209]
[1733261355240,1.09668526,3630.0,3629.9,2.88209]
[1733261356324,1.50871613,3630.0,3629.9,2.88209]
[1733261356715,1.50871613,3630.0,3629.9,0.123664]
[1733261357410,1.92295082,3630.0,3629.9,0.123664]
[1733261358233,2.40536058,3630.0,3629.9,0.023664]
[1733261358440,3.27567044,3630.0,3629.9,0.023664]
[1733261358736,3.42864071,3630.0,3629.9,0.023664]
[1733261358942,4.15201673,3630.0,3629.9,0.023664]
[1733261359296,3.44771398,3630.0,3629.6,0.00130496]
[1733261359629,0.42985981,3629.8,3629.7,0.1]
[1733261359799,2.78812405,3629.8,3629.7,0.1]
[1733261360137,2.83497379,3629.8,3629.7,0.1]
[1733261360852,2.40704124,3629.8,3629.7,0.1056]
[1733261361064,2.83692846,3629.8,3629.7,0.1056]
[1733261361354,2.40704124,3629.8,3629.7,0.1056]
[1733261361740,2.83696423,3629.8,3629.7,0.1056]
[1733261363050,2.83696423,3629.8,3629.7,0.0056]
[1733261363258,2.83696423,3629.8,3629.7,0.1056]
[1733261364266,2.83772523,3629.8,3629.7,0.1056]
[1733261364961,3.11298699,3629.8,3629.7,0.1056]
[1733261365454,2.68289049,3629.8,3629.7,0.1056]
[1733261365628,2.40762873,3629.8,3629.7,2.86064]
[1733261365831,2.66543439,3629.8,3629.7,4.58254]
[1733261366031,2.83771885,3629.8,3629.7,4.58254]
[1733261366238,2.66543439,3629.8,3629.7,4.58254]
[1733261366915,2.23532676,3629.8,3629.7,4.58254]
[1733261367523,2.23531631,3629.8,3629.7,4.58254]
[1733261367736,0.04684974,3629.8,3629.7,4.58254]
[1733261367943,2.23579158,3629.8,3629.7,4.58254]
[1733261368158,2.23579014,3629.8,3629.7,4.58254]
[1733261368367,2.40808356,3629.8,3629.7,4.58254]
[1733261368532,2.23579014,3629.8,3629.7,1.8275]
[1733261368737,2.06350082,3629.8,3629.7,1.8275]
[1733261369088,2.06350082,3629.8,3629.7,4.58254]
[1733261369582,2.23579417,3629.8,3629.7,4.58254]
[1733261370269,2.23579417,3629.8,3629.7,6.28269063]
[1733261370476,2.23579417,3629.8,3629.7,3.32765063]
[1733261370477,2.06350082,3629.8,3629.7,3.32765063]
[1733261370632,2.40808754,3629.8,3629.7,0.0056]
[1733261370859,2.68337239,3629.8,3629.7,0.1056]
[1733261371087,2.40808754,3629.8,3629.7,0.1056]
[1733261371268,2.40813542,3629.8,3629.7,1.80575063]
[1733261371636,2.40813767,3629.8,3629.7,6.14081437]
[1733261371785,2.06354526,3629.8,3629.7,6.90642846]
[1733261372087,1.87886291,3629.8,3629.7,4.63764]
[1733261372248,1.46593601,3629.8,3629.7,7.47700781]
[1733261372442,2.09793397,3629.8,3629.7,7.47700781]
[1733261372782,2.09796434,3629.8,3629.7,7.47704412]
[1733261372994,2.23579162,3629.8,3629.7,4.63764]
[1733261373141,2.23579162,3629.8,3629.7,7.47704412]
[1733261373651,2.2357904,3629.8,3629.7,4.63764]
[1733261373850,2.2357904,3629.8,3629.7,7.47704412]
[1733261374095,2.09796434,3629.8,3629.7,4.63764]
[1733261374269,2.2357896,3629.8,3629.7,7.47704412]
[1733261374469,0.84164823,3629.8,3629.7,4.63764]
[1733261374780,1.13561601,3629.8,3629.7,4.63764]
[1733261374990,1.68506401,3629.8,3629.7,4.63764]
[1733261375703,2.27032483,3629.8,3629.7,3.06064]
[1733261375901,2.27032483,3629.8,3629.7,4.60934]
[1733261376405,2.40815454,3629.8,3629.7,7.45256248]
[1733261376608,2.40815454,3629.8,3629.7,4.60934]
[1733261376765,2.40815296,3629.8,3629.7,4.60934]
[1733261377413,0.76991264,3629.8,3629.7,4.60934]
[1733261377574,1.51289516,3629.8,3629.7,4.60934]
[1733261377917,1.92587447,3629.8,3629.7,4.60934]
[1733261378112,2.40826955,3629.8,3629.7,4.60934]
[1733261378400,2.40827253,3629.8,3629.7,7.4525916]
[1733261378557,2.23598792,3629.8,3629.7,0.1056]
[1733261378766,2.23598792,3629.8,3629.7,2.94890072]
[1733261379004,2.40827577,3629.8,3629.7,0.1056]
[1733261379258,2.40827577,3629.8,3629.7,2.94890072]
[1733261379443,2.23598792,3629.8,3629.7,2.94890072]
[1733261379650,2.23598792,3629.8,3629.7,0.1056]
[1733261379964,2.8384726,3629.8,3629.7,2.38097591]
[1733261380112,2.23598792,3629.8,3629.7,0.1056]
[1733261380767,2.83847282,3629.8,3629.7,2.38125105]
[1733261381360,2.83847282,3629.8,3629.7,0.1056]
[1733261381565,0.04681864,3629.8,3629.7,2.38150573]
[1733261381729,3.26886159,3629.8,3629.7,2.38150573]
[1733261382257,3.5441991,3629.8,3629.7,2.38150573]
[1733261382567,3.11398424,3629.8,3629.7,0.1056]
[1733261382870,2.40843187,3629.8,3629.7,0.1056]
[1733261383278,2.40843187,3629.8,3629.7,2.95059708]
[1733261383576,2.40843187,3629.8,3629.7,0.1056]
[1733261383782,2.40843187,3629.8,3629.7,2.28164995]
[1733261383783,4.15662692,3629.8,3629.7,2.28164995]
[1733261384078,4.15662692,3629.8,3629.7,0.0056]
[1733261384232,3.45106849,3629.8,3629.4,2.84467158]
[1733261384431,3.45106849,3629.8,3629.3,0.1]
[1733261384432,0.86044444,3629.6,3629.3,2.94467158]
[1733261384731,2.36164985,3629.5,3629.3,2.94467158]
[1733261385044,2.79185249,3629.4,3629.3,0.1]
[1733261385444,2.66628974,3629.4,3629.3,0.1]
[1733261385650,2.40838835,3629.4,3629.3,2.94532528]
[1733261386176,2.40838835,3629.4,3629.3,2.97572528]
[1733261386387,2.23607673,3629.4,3629.3,2.97570647]
[1733261386873,2.40838827,3629.4,3629.3,2.97570647]
[1733261387578,2.23607673,3629.4,3629.3,2.97570647]
[1733261387875,2.23607673,3629.4,3629.3,0.1304]
[1733261388478,2.06362065,3629.4,3629.3,0.1304]
[1733261388656,2.06362065,3629.4,3629.3,0.0304]
[1733261388657,2.40826184,3629.4,3629.3,0.0304]
[1733261388842,2.83843081,3629.4,3629.3,0.0304]
[1733261389585,2.40826184,3629.4,3629.3,0.0304]
[1733261390782,2.40826184,3629.4,3629.1,2.77570647]
[1733261390984,2.36152091,3629.3,3629.1,0.1]
[1733261391201,1.87903308,3629.2,3629.1,0.1]
[1733261391382,1.92556164,3629.2,3629.1,0.1]
[1733261391802,2.09788371,3629.2,3628.8,2.70572869]
[1733261392022,1.46607087,3629.1,3628.8,2.70572869]
[1733261392192,0.04652856,3629.2,3628.8,6.11942675]
[1733261392193,0.72270503,3629.0,3628.8,6.11942675]
[1733261392392,0.72261831,3628.9,3628.8,2.70572869]
[1733261392591,0.46460365,3628.9,3628.8,2.50572869]
[1733261392807,1.04975612,3628.9,3628.8,2.50572869]
[1733261393010,0.87743424,3628.9,3628.8,2.50572869]
[1733261393283,0.87743424,3628.9,3628.8,2.30572869]
[1733261393829,0.25810138,3628.9,3628.8,3.70452869]
[1733261394125,0.25810138,3628.9,3628.8,3.73172869]
[1733261394308,0.58811397,3629.7,3629.5,2.75516]
[1733261394626,1.63736766,3629.6,3629.5,4.18116]
[1733261394787,1.92419943,3629.6,3629.5,4.18116]
[1733261395126,2.09649062,3629.6,3629.5,3.98116]
[1733261395279,1.51149344,3629.6,3629.5,4.18116]
[1733261395628,1.18133069,3629.6,3629.5,3.98116]
[1733261395809,0.30434202,3629.6,3629.5,7.39244912]
[1733261395997,0.25793777,3629.6,3629.5,5.23728912]
[1733261396195,0.46426529,3629.6,3629.5,5.23630306]
[1733261396399,0.25793777,3629.6,3629.5,5.23630306]
[1733261396755,0.25793777,3629.6,3629.5,7.79146306]
[1733261396883,0.48235135,3630.2,3629.5,7.79145306]
[1733261397082,2.66883961,3630.3,3630.0,2.27335669]
[1733261397083,1.8773849,3630.1,3630.0,2.27335669]
[1733261397429,1.92416208,3630.1,3630.0,2.95479]
[1733261397589,1.51155001,3630.1,3630.0,2.98199]
[1733261397791,1.51155001,3630.1,3630.0,2.78199]
[1733261397979,1.09893794,3630.1,3630.0,2.78199]
[1733261398186,0.46418857,3630.1,3630.0,5.58199]
[1733261398797,0.46408217,3630.1,3630.0,2.38199]
[1733261399536,0.46408217,3630.1,3630.0,2.18199]
[1733261399732,0.46387249,3630.1,3630.0,6.83729]
[1733261399888,0.20619963,3630.1,3630.0,6.83729]
[1733261400084,0.20619963,3630.1,3630.0,1.6825]
[1733261400390,0.17225121,3630.9,3630.6,1.6553]
[1733261400585,2.18583016,3630.8,3630.6,1.6553]
[1733261400784,2.18583016,3630.7,3630.6,1.6825]
[1733261401096,1.34365837,3630.7,3630.6,0.0272]
[1733261401410,2.18582523,3630.7,3630.3,4.23246]
[1733261401616,1.66964519,3630.6,3630.3,4.23246]
[1733261401861,1.05125904,3630.5,3630.3,4.23246]
[1733261402163,1.05119492,3630.4,3630.3,4.23246]
[1733261402364,1.05105034,3630.4,3630.3,4.23246]
[1733261402949,1.05105034,3630.4,3630.1,2.75472]
[1733261403160,2.66883961,3630.6,3630.1,2.75472]
[1733261403161,2.66883961,3630.6,3630.3,0.028]
[1733261403325,1.05058472,3630.5,3630.3,0.028]
[1733261403525,1.05059669,3630.4,3630.3,0.028]
[1733261403769,1.46261111,3630.4,3630.3,0.028]
[1733261404269,1.87463502,3630.4,3630.3,0.028]
[1733261404777,1.46261111,3630.4,3630.3,0.028]
[1733261405076,2.87801111,3630.4,3630.3,0.028]
[1733261405229,5.77033984,3630.4,3630.3,0.028]
[1733261405428,6.35459938,3630.4,3630.3,0.028]
[1733261405678,6.78392651,3630.4,3630.3,0.028]
[1733261405828,6.6293,3630.4,3630.3,0.028]
[1733261406052,6.62929311,3630.4,3630.3,0.028]
[1733261406259,4.02941651,3630.4,3630.3,0.028]
[1733261406464,3.87478267,3630.4,3630.3,0.028]
[1733261406672,3.87478267,3630.4,3629.4,2.09873876]
[1733261406979,2.66883961,3629.8,3629.3,5.5937438]
[1733261407283,0.46349845,3629.7,3629.4,2.75526]
[1733261407587,0.46349845,3629.6,3629.3,2.6384238]
[1733261407883,0.46349845,3629.6,3629.2,2.75541]
[1733261407884,2.66883961,3629.8,3629.1,1.6454]
[1733261408027,0.206017,3629.7,3629.6,2.7551]
[1733261408380,0.206017,3629.7,3629.2,1.6454]
[1733261408547,2.66883961,3629.4,3629.0,3.40610856]
[1733261408746,0.66954989,3629.3,3628.8,3.40610856]
[1733261408946,2.66883961,3629.4,3628.5,5.96205856]
[1733261408947,1.30540959,3629.2,3628.5,5.96205856]
[1733261409131,2.66883961,3629.0,3628.5,2.75595]
[1733261409366,0.66957623,3628.9,3628.5,2.75595]
[1733261409705,0.25751919,3628.8,3628.5,2.55595]
[1733261409916,2.66883961,3629.0,3628.5,2.55595]
[1733261410076,0.51509872,3628.9,3628.5,2.55595]
[1733261410416,2.66883961,3629.0,3628.3,4.5037]
[1733261410417,0.25754706,3628.8,3628.3,4.5037]
[1733261410565,0.25753635,3628.7,3628.3,1.5037]
[1733261410771,1.4154,3629.1,3628.1,2.75624]
[1733261410772,2.66883961,3628.6,3628.1,1.5952]
[1733261411111,2.66883961,3628.6,3628.3,2.55604]
[1733261411410,2.66883961,3629.0,3628.5,0.0304]
[1733261411608,1.54507582,3628.9,3628.1,1.5952]
[1733261411817,1.54507582,3628.9,3628.2,2.75618]
[1733261411818,0.46352236,3628.8,3628.2,2.75618]
[1733261412105,0.51502483,3628.7,3628.4,2.75603]
[1733261412307,2.66883961,3629.0,3628.4,2.75603]
[1733261412476,0.72093923,3628.9,3628.4,2.75603]
[1733261412685,0.51495655,3628.8,3628.2,2.75617]
[1733261413009,2.66883961,3628.6,3628.1,1.5952]
[1733261413215,0.2574782,3628.5,3628.3,0.0272]
[1733261413379,2.66883961,3628.6,3628.3,0.0272]
[1733261413714,1.4154,3628.5,3628.3,0.0272]
[1733261414212,0.51492211,3628.4,3628.3,0.0272]
[1733261414997,2.95997461,3628.4,3628.3,0.0272]
[1733261415507,3.46173149,3628.4,3628.3,0.0272]
[1733261415682,3.63412019,3628.4,3628.3,0.0272]
[1733261415879,3.7720388,3628.4,3628.3,0.0272]
[1733261416081,6.5280688,3628.4,3628.3,0.0272]
[1733261416399,6.39015789,3628.4,3628.3,0.0272]
[1733261416710,4.06334399,3628.4,3628.3,0.0272]
[1733261417181,3.63412789,3628.4,3628.3,0.0272]
[1733261418012,3.63308686,3628.4,3628.3,0.0272]
[1733261418305,3.460697,3628.4,3628.3,0.0272]
[1733261418512,3.6330867,3628.4,3628.3,0.0272]
[1733261418709,3.63308902,3628.4,3628.3,0.0272]
[1733261419082,3.460697,3628.4,3628.3,0.0272]
[1733261420663,3.13132585,3628.4,3628.3,0.0272]
[1733261421307,2.54667447,3628.4,3628.3,0.0272]
[1733261421519,2.95729326,3628.4,3628.3,0.0272]
[1733261421679,3.3349897,3628.4,3628.3,0.0272]
[1733261421882,3.4581758,3628.4,3628.3,0.0272]
[1733261422081,3.12968031,3628.4,3628.3,0.0272]
[1733261422289,2.75641,3627.9,3627.8,174.07870702]
[1733261422619,7.97192437,3627.9,3627.8,174.07870702]
[1733261422825,5.62613316,3627.9,3627.8,174.07870702]
[1733261423167,5.21551437,3627.9,3627.8,174.07870702]
[1733261423822,4.5983337,3627.9,3627.8,174.07870702]
[1733261424164,4.34169696,3627.9,3627.8,174.07870702]
[1733261424419,4.34169696,3627.9,3627.8,174.10590702]
[1733261424420,4.59809481,3627.9,3627.8,174.10590702]
[1733261424766,5.00835235,3627.9,3627.8,174.10590702]
[1733261424972,5.21348018,3627.9,3627.8,164.50211404]
[1733261425299,7.88231979,3627.9,3627.8,162.13430026]
[1733261425620,11.38003237,3627.9,3627.8,162.13430026]
[1733261425915,11.55245377,3627.9,3627.8,162.13430026]
[1733261426120,11.38003237,3627.9,3627.8,162.13430026]
[1733261426712,12.05294957,3627.9,3627.8,162.13430026]
[1733261427511,12.62011881,3627.9,3627.8,162.13430026]
[1733261427712,12.04482506,3627.9,3627.8,162.13430026]
[1733261428291,12.18277478,3627.9,3627.8,162.13430026]
[1733261428475,12.04482506,3627.9,3627.8,162.13430026]
[1733261428903,9.28841506,3627.9,3627.8,162.13430026]
[1733261429114,9.23010088,3627.9,3627.8,162.13430026]
[1733261429321,12.15893284,3627.9,3627.8,152.52238276]
[1733261429616,13.32587182,3627.9,3627.8,152.52238276]
[1733261430169,12.89665572,3627.9,3627.8,152.52238276]
[1733261430375,12.66931252,3627.9,3627.8,152.52238276]
[1733261430575,12.94281214,3627.9,3627.8,151.90158447]
[1733261431104,13.04281214,3627.9,3627.8,151.90158447]
[1733261431275,10.10047291,3627.9,3627.8,151.90158447]
[1733261431471,10.00047291,3627.9,3627.8,151.90158447]
[1733261431822,9.93574639,3627.9,3627.8,151.90158447]
[1733261432115,13.03148769,3627.9,3627.8,151.90158447]
[1733261432330,12.46931252,3627.9,3627.8,151.90158447]
[1733261432617,12.46931252,3627.9,3627.8,142.29779149]
[1733261434455,12.46931252,3627.9,3627.8,141.43558799]
[1733261434717,12.21983669,3627.9,3627.8,141.43558799]
[1733261435276,12.21983669,3627.9,3627.8,131.83179501]
[1733261435473,12.21983669,3627.9,3627.8,122.22800203]
[1733261435693,12.21983669,3627.9,3627.8,119.86018825]
[1733261435902,12.63753158,3627.9,3627.8,119.23936214]
[1733261436180,12.63753158,3627.9,3627.8,118.74267323]
[1733261437918,11.59289964,3627.9,3627.8,118.74267323]
[1733261438126,9.507959,3627.9,3627.8,118.74267323]
[1733261438288,2.37951837,3627.9,3627.8,0.0272]
[1733261438681,2.42294646,3627.9,3627.8,0.0272]
[1733261439326,5.42294646,3627.9,3627.8,0.0272]
[1733261439536,2.42294646,3627.9,3627.8,0.0272]
[1733261439725,5.67967257,3627.9,3627.8,0.0272]
[1733261440026,2.67967257,3627.9,3627.8,0.0272]
[1733261441408,5.68082465,3627.9,3627.8,0.0272]
[1733261443418,8.43723465,3627.9,3627.8,0.0272]
[1733261444053,4.00289706,3627.9,3627.8,0.0272]
[1733261444218,2.27368758,3627.9,3627.8,0.0272]
[1733261444401,2.68521918,3627.9,3627.8,0.0272]
[1733261444750,2.01647764,3627.9,3627.2,1.5376]
[1733261445054,0.42886038,3627.3,3627.2,1.5376]
[1733261445347,2.3555372,3627.3,3627.2,1.5376]
[1733261445547,3.10013357,3627.3,3627.2,1.5376]
[1733261445906,2.67114127,3627.3,3627.2,1.5376]
[1733261446243,2.39658892,3627.3,3627.2,1.5376]
[1733261446463,2.39658892,3627.3,3627.2,1.5656]
[1733261447025,2.22416671,3627.3,3627.2,1.5656]
[1733261448378,2.65315901,3627.3,3627.2,1.5656]
[1733261449360,2.92771136,3627.3,3627.2,1.5656]
[1733261450794,2.22416671,3627.3,3627.2,0.94489022]
[1733261451247,2.65315901,3627.3,3627.2,0.028]
[1733261451454,2.22416671,3627.3,3627.2,0.028]
[1733261451873,2.22827582,3627.3,3627.2,0.028]
[1733261452247,2.65796282,3627.3,3627.2,0.028]
[1733261453086,2.22827582,3627.3,3627.2,0.028]
[1733261453475,2.22827582,3627.3,3627.2,2.78494]
[1733261453635,2.93335089,3627.3,3627.2,2.78494]
[1733261453840,2.6171481,3627.3,3627.2,4.38944]
[1733261454142,2.2283174,3627.3,3627.2,4.38944]
[1733261454496,2.6582414,3627.3,3627.2,4.38944]
[1733261455184,2.22906069,3627.3,3627.2,4.38944]
[1733261456891,2.40147402,3627.3,3627.2,4.38944]
[1733261457246,2.65928627,3627.3,3627.2,4.38944]
[1733261457443,2.22905664,3627.3,3627.2,4.38944]
[1733261457954,2.65928512,3627.3,3627.2,4.38944]
[1733261458341,2.22905664,3627.3,3627.2,4.38944]
[1733261458688,2.2306192,3627.3,3627.2,1.6325]
[1733261458886,2.2306192,3627.3,3627.2,4.38944]
[1733261460968,2.05820637,3627.3,3627.2,1.6325]
[1733261461180,5.00233407,3627.3,3627.2,0.028]
[1733261461381,4.72704598,3627.3,3627.2,0.028]
[1733261461594,7.91413183,3627.3,3627.2,0.028]
[1733261461883,4.72704598,3627.3,3627.2,0.028]
[1733261462097,4.89948013,3627.3,3627.2,0.028]
[1733261462242,7.65635013,3627.3,3627.2,0.028]
[1733261462848,10.65635013,3627.3,3627.2,0.028]
[1733261463405,2.66883961,3626.4,3626.2,1.6354]
[1733261463684,2.09305609,3626.3,3626.2,1.6354]
[1733261463842,2.23100995,3626.3,3626.2,1.6354]
[1733261464041,1.81800274,3626.3,3626.2,1.6354]
[1733261464280,1.50762946,3626.3,3626.2,1.6354]
[1733261465461,1.09462225,3626.3,3625.9,1.5176]
[1733261465684,1.0531845,3626.2,3625.9,1.5176]
[1733261465915,1.0531845,3626.2,3625.4,2.75824]
[1733261465916,2.66883961,3626.0,3625.5,1.5176]
[1733261466121,1.0532444,3626.1,3625.5,1.5176]
[1733261466122,2.66883961,3625.6,3625.5,1.5176]
[1733261466495,2.70942366,3625.6,3625.5,1.5176]
[1733261467048,0.04058405,3625.6,3625.5,1.5176]
[1733261467221,2.66883961,3626.0,3625.5,1.5176]
[1733261467423,1.09373282,3625.9,3625.5,4.27581]
[1733261467582,0.20649486,3625.8,3625.5,4.27581]
[1733261467774,0.464619,3625.7,3625.5,4.27581]
[1733261467981,2.66883961,3626.0,3625.5,1.5176]
[1733261468292,2.66883961,3625.6,3625.5,1.5176]
[1733261468494,2.87534342,3625.6,3625.5,1.5176]
[1733261468811,2.87534342,3625.6,3625.0,2.84884942]
[1733261468812,3.17397482,3625.6,3625.0,2.84884942]
[1733261469018,3.17397482,3625.6,3624.8,1.5214]
[1733261469019,2.66883961,3625.1,3624.9,2.84884942]
[1733261469195,0.04037613,3625.0,3624.8,1.5214]
[1733261469382,1.63867874,3625.9,3624.9,2.75869]
[1733261469723,2.66883961,3625.6,3625.0,1.6299]
[1733261469930,0.72219497,3625.5,3625.0,1.6299]
[1733261470217,0.20632029,3625.4,3625.3,2.75839]
[1733261470380,0.20632029,3625.4,3625.3,4.38829]
[1733261470784,0.20632029,3625.4,3625.0,2.75856]
[1733261470785,0.96293139,3626.0,3625.9,2.75793]
[1733261471089,0.96293139,3626.0,3625.9,1.5198]
[1733261471090,1.67636572,3626.0,3625.9,1.5198]
[1733261471325,1.34637392,3626.0,3625.9,1.5198]
[1733261471693,1.67629078,3626.0,3625.9,1.5502]